Cogmind - Beta 16 @@@ ROGUE MODE // 2025.11.02 @ 14:09:30 Player: Err. String Expected Got Nil Result: Self-destructed Performance ------------- Evolutions (2) 1000 Regions Visited (3) 600 Robots Destroyed (59) 295 Value Destroyed (1433) 1433 Prototype IDs (8) 160 Alien Tech Used (0) 0 Bonus (11) 11 TOTAL SCORE: 3499 Bonus ------- High Alert Combat Kills 11 Cogmind --------- Core Integrity 409/550 Matter 282/300 Energy 290/290 System Corruption 0% Temperature Cool (0) Movement Treading (242) Ox1 Location -8/Materials Parts ------- > --- POWER (1) -------- Improved Deuterium Engine > --- PROPULSION (4) --- Light Treads Light Treads Light Treads Armored Treads > --- UTILITY (4) ------ Cooling System Huge Storage Unit Structural Scanner Makeshift Hacking Suite > --- WEAPON (2) ------- Heavy Particle Gun Heavy Particle Gun > --- INVENTORY (25) --- Improved Deuterium Engine Improved Deuterium Engine Light Treads Improved VTOL Module Improved VTOL Module Improved VTOL Module Cooled VTOL Module Cooled VTOL Module Cooled VTOL Module Cooled VTOL Module Trap Scanner Trap Scanner Advanced Visual Processing Unit Improved Sensor Array Hacking Suite Makeshift Hacking Suite Improved Medium Laser Improved Medium Laser Ion Cannon Assault Cannon Proton Missile Launcher Datajack Scythe Peak State ------------ > --- POWER ------------ Improved Deuterium Engine > --- PROPULSION ------- Light Treads Light Treads Light Treads Armored Treads > --- UTILITY ---------- Cooling System Huge Storage Unit Structural Scanner Makeshift Hacking Suite > --- WEAPON ----------- Heavy Particle Gun Heavy Particle Gun > --- INVENTORY -------- Improved Deuterium Engine Improved Deuterium Engine Wheel Wheel Compact Wheel Improved VTOL Module Improved VTOL Module Improved VTOL Module Cooled VTOL Module Cooled VTOL Module Cooled VTOL Module Cooled VTOL Module Trap Scanner Trap Scanner Advanced Visual Processing Unit Improved Sensor Array Hacking Suite Makeshift Hacking Suite Improved Medium Laser Improved Medium Laser Ion Cannon Assault Cannon Subdweller Shrapnel Launcher Datajack Scythe [Rating: 34] Favorites ----------- Power Ion Engine Engine Ion Engine Power Core Light Nuclear Core Propulsion Light Treads Treads Light Treads Leg Aluminum Leg Wheel Wheel Utility Makeshift Hacking Suite Device Seismic Detector Storage Huge Storage Unit Hackware Makeshift Hacking Suite Protection Scrap Shield Weapon Subdweller Machine Gun Energy Gun Medium Laser Energy Cannon Ion Cannon Ballistic Gun Subdweller Machine Gun Launcher Proton Missile Launcher Slashing Weapon Scythe Build | -11 -10 -10 -8 ------- Run | Yrd Mat Sub Mat Slots Evolved 4 | . . . 4 Power . | . . . . Propulsion 2 | . . . 2 Utility 2 | . . . 2 Weapon . | . . . . Parts Attached 49 | 1 2 10 36 Power 6 | . . 2 4 Engine 5 | . . 2 3 Core 1 | . . . 1 Reactor . | . . . . Propulsion 17 | . . 3 14 Treads 8 | . . 3 5 Leg . | . . . . Wheel 9 | . . . 9 Hover . | . . . . Flight . | . . . . Utility 12 | 1 1 2 8 Device 6 | 1 . . 5 Storage 2 | . 1 . 1 Processor . | . . . . Hackware 1 | . . . 1 Protection 3 | . . 2 1 Artifact . | . . . . Weapon 14 | . 1 3 10 Energy Gun 5 | . . . 5 Energy Cannon 2 | . . . 2 Ballistic Gun 4 | . 1 2 1 Ballistic Cannon . | . . . . Launcher 2 | . . 1 1 Special Weapon . | . . . . Impact Weapon . | . . . . Slashing Weapon 1 | . . . 1 Piercing Weapon . | . . . . Special Melee Weapon . | . . . . Unidentified Prototypes 2 | . . . 2 Parts Lost 9 | . . 3 6 Power 2 | . . 2 . Propulsion 4 | . . 1 3 Utility 1 | . . . 1 Weapon 2 | . . . 2 Highest Loss Streak 2 | . . 2 2 To Critical Strikes . | . . . . Average Backups 12 | 6 8 7 16 Power . | 1 1 . 1 Propulsion 4 | 4 4 1 5 Utility 3 | . . 2 4 Weapon 3 | 1 2 3 4 Tool/Special . | . . . . Unused Backups 37 | 6 2 8 21 Power 5 | 1 . 1 3 Propulsion 16 | 2 2 2 10 Utility 6 | 1 . 1 4 Weapon 9 | 2 . 4 3 Tool/Special 1 | . . . 1 Average Slot Usage (%) 90 | . 100 94 85 Engine 10 | . 14 13 6 Core 1 | . . . 1 Treads 14 | . . 26 9 Leg 3 | . 28 1 . Wheel 12 | . . . 22 Device 8 | . 14 8 8 Storage 8 | . 14 9 6 Hackware 4 | . . . 7 Protection 4 | . . 5 3 Energy Gun 8 | . 14 8 7 Energy Cannon 3 | . . . 6 Ballistic Gun 9 | . 14 18 2 Peak Build Rating 34 | 7 8 15 34 Average Rating 18 | 6 7 10 25 On Entrance 8 | 6 7 8 14 Avg Prop Armor Cover (%) . | . . . . Naked Turns . | . . . . Heaviest Build 110 | 14 20 35 110 Greatest Support 80 | 20 20 40 80 Greatest Overweight (x) 5 | . . . 5 Average Overweight (x) . | . . . 1 Largest Inventory Capacity 25 | 8 10 10 25 Average Capacity 14 | 8 9 8 20 Most Carried 25 | 6 10 10 25 Average Carried 12 | 6 8 7 17 Final Capacity 25 | 8 10 5 25 Final Carried 23 | 6 8 5 23 Class Distribution -------------------- 42% | Scavenger-Mutant 41% | Mutant 15% | Subdweller-Mutant Dominant Class ---------------- Mutant | -10/Materials Mutant | -10/Subcaves Scavenger-Mutant | -8/Materials Resources | -11 -10 -10 -8 ----------- Run | Yrd Mat Sub Mat Matter Collected 975 | 200 44 253 478 Remotely . | . . . . Salvage Created 2155 | 112 57 340 1646 Parts 116 | 8 6 21 81 Haulers Intercepted 4 | . . . 4 Recyclers Shooed 1 | . . . 1 Parts Field Recycled . | . . . . Retrieved Matter . | . . . . Parts Self-Destructed 16 | . . 16 . Prevented . | . . . . Parts Restored . | . . . . Kills | -11 -10 -10 -8 ------- Run | Yrd Mat Sub Mat Combat Hostiles Destroyed 38 | . 3 10 25 Guns 20 | . 3 8 9 Cannons 8 | . . . 8 AOE 8 | . . 2 6 Classes Destroyed 12 | 2 2 2 6 Worker 3 | . . . 3 Builder 3 | . . . 3 Tunneler 2 | 2 . . . Hauler 4 | . . . 4 Recycler 4 | 1 . . 3 Operator 3 | . 1 . 2 Watcher 2 | . . . 2 Swarmer 15 | . 3 4 8 Grunt 15 | . . . 15 Sentry 2 | . . . 2 Cobbler 1 | . . 1 . Subdweller 6 | . . 6 . Best Kill Streak 6 | 2 3 4 6 Combat Bots Only 6 | . 3 4 6 Max Kills in Single Turn 2 | 1 1 2 1 Gunslinging . | . . . . Exploded 2 | . . 2 1 Melee . | . . . . Uniques/NPCs Destroyed . | . . . . Combat | -11 -10 -10 -8 -------- Run | Yrd Mat Sub Mat Hostile Shots Fired 236 | . 23 62 151 Missed 66 | . 6 16 44 Hits 170 | . 17 46 107 Projectile 170 | . 17 46 107 Critical Strikes 4 | . . 2 2 Damage Taken 2493 | . 137 866 1490 Core 290 | . 65 84 141 Absorbed by Shields . | . . . . Core Remaining (%) 70 | 100 . 40 . Volleys Fired 176 | 11 14 42 109 Largest 2 | 2 2 2 2 Hottest 123 | 70 70 80 123 Shots Fired 312 | 22 28 68 194 Gun 231 | 22 28 65 116 Cannon 70 | . . . 70 Launcher 11 | . . 3 8 Special . | . . . . Kinetic 96 | 11 14 44 27 Thermal 177 | 11 14 24 128 Explosive . | . . . . Electromagnetic 39 | . . . 39 Robot Hit Streak 13 | 6 6 13 11 Robot Miss Streak 6 | 3 3 6 4 Penetration Max . | . . . . Secondary Targets 1 | . . 1 . Max Gunslinging Chain 1 | . . 1 . Shots Hit Robots 183 | 14 14 36 119 Core Hits 78 | 5 5 15 53 Critical Kills 1 | . . . 1 Critical Parts Destroyed . | . . . . Critical Strikes 9 | 1 1 2 5 Burn 5 | 1 1 1 2 Meltdown 1 | . . . 1 Destroy 1 | . . 1 . Corrupt 1 | . . . 1 Sever 1 | . . . 1 Melee Attacks 15 | . . . 15 Impact . | . . . . Slashing 15 | . . . 15 Piercing . | . . . . Sneak Attacks 3 | . . . 3 Combat Hostiles . | . . . . Follow-up Attacks . | . . . . Damage Inflicted 4303 | 139 171 772 3221 Guns 1931 | 139 145 593 1054 Cannons 1172 | . . . 1172 Explosions 761 | . . 179 582 Melee 413 | . . . 413 Ramming 26 | . 26 . . Kinetic 880 | 78 34 572 196 Thermal 2141 | 61 111 200 1769 Explosive . | . . . . Electromagnetic 843 | . . . 843 Impact . | . . . . Slashing 413 | . . . 413 Piercing . | . . . . Highest Corruption . | . . . . Average Corruption . | . . . . Corruption Purged . | . . . . Corruption Blocked . | . . . . Overload Shots . | . . . . Overflow Damage 89 | . . . 89 Projectiles 38 | . . . 38 Explosions 25 | . . . 25 Melee 26 | . . . 26 Knockbacks . | . . . . Impact . | . . . . Kinetic . | . . . . Secondary . | . . . . Self-Inflicted Damage 76 | . . 44 32 Shots 3 | . . 1 2 Rammed . | . . . . Targets Rammed 2 | . 2 . . Kicked 2 | . 2 . . Crushed . | . . . . Highest Temperature 342 | 110 170 . 342 Average Temperature 91 | 49 69 . 100 Received Heat Transfer 852 | . . 177 675 Effects 1 | . . . 1 Energy Bleed 1 | . . . 1 Siege Activations . | . . . . Martial Activations . | . . . . Shielding Activations . | . . . . Robots Disrupted . | . . . . Combat Hostiles . | . . . . Robots Corrupted 1 | . . . 1 Combat Hostiles 1 | . . . 1 Parts Fried 2 | . . . 2 Impact Corruptions . | . . . . Robots Melted 1 | . . . 1 Combat Hostiles 1 | . . . 1 Parts Melted 10 | 1 2 . 7 Heat Transferred 4570 | 259 407 666 3238 Parts Sabotaged . | . . . . Parts Stolen . | . . . . Parts Stripped . | . . . . Power Chain Reactions 5 | . . . 5 Alert | -11 -10 -10 -8 ------- Run | Yrd Mat Sub Mat Maximum Alert Level 2 | . . . 2 Low Security (%) 87 | 100 100 . 85 Level 1 6 | . . . 7 Level 2 6 | . . . 7 Level 3 . | . . . . Level 4 . | . . . . Level 5 . | . . . . High Security . | . . . . Max Security . | . . . . Peak Influence 426 | 10 105 . 426 Initial . | . . . . Average 105 | 1 34 . 121 Influence Increases 1233 | 15 124 140 954 Destroy 0b10 Robot/C 640 | . 60 80 500 Destroy 0b10 Robot/NC 105 | 15 5 . 85 Destroy Leader 102 | . 10 . 92 Successful Hack 4 | . 4 . . Disable Machine 120 | . . . 120 Destroy Structure 37 | . . . 37 Lose Combat Pursuer 225 | . 45 60 120 Influence Decreases 814 | 15 124 140 535 Time Decay 769 | 15 124 140 490 Lost Part 45 | . . . 45 Squads Dispatched 5 | . 2 . 3 Investigation 1 | . 1 . . Extermination . | . . . . Reinforcement 3 | . 1 . 2 Assault 1 | . . . 1 Garrison . | . . . . Intercept . | . . . . Searches Triggered . | . . . . Construction Impeded . | . . . . Haulers Reinforced . | . . . . Active Scanning Responses . | . . . . Cargo Convoy Interrupts . | . . . . Stealth | -11 -10 -10 -8 --------- Run | Yrd Mat Sub Mat Distress Signals 1 | . . . 1 Communications Jammed . | . . . . Distress Signals . | . . . . Times Spotted 66 | . 8 15 43 Peak Tracking Total 6 | . 3 6 5 Tactical Retreats 10 | . 1 2 7 Traps | -11 -10 -10 -8 ------- Run | Yrd Mat Sub Mat Traps Triggered 2 | . 1 1 . Indirectly . | . . . . Trap Hack Attempts . | . . . . Triggered . | . . . . Disarmed . | . . . . Reprogrammed . | . . . . Reused . | . . . . Traps Extracted . | . . . . Installed . | . . . . Triggered . | . . . . Machines | -11 -10 -10 -8 ---------- Run | Yrd Mat Sub Mat Machines Disabled 8 | . . . 8 Max in Single Turn 2 | . . . 2 Machines Repaired . | . . . . Machines Dismantled . | . . . . Machines Sabotaged . | . . . . Overloaded Fab Kills . | . . . . Hacking | -11 -10 -10 -8 --------- Run | Yrd Mat Sub Mat Machines Accessed 11 | . 3 . 8 Terminals 9 | . 2 . 7 Fabricators . | . . . . Repair Stations . | . . . . Recycling Units 2 | . 1 . 1 Scanalyzers . | . . . . Garrison Access . | . . . . Total Hacks 43 | . 7 . 36 Successful 26 | . 3 . 23 Failed 17 | . 4 . 13 Catastrophic 2 | . 1 . 1 Database Lockouts . | . . . . Manual 29 | . 7 . 22 Terminals 39 | . 6 . 33 Fabricators . | . . . . Repair Stations . | . . . . Recycling Units 4 | . 1 . 3 Scanalyzers . | . . . . Garrison Access . | . . . . Terminal Hacks 10 | . . . 10 Prototype ID Bank 3 | . . . 3 Branch Access Points 1 | . . . 1 Terminal Index 1 | . . . 1 Locate Traps 1 | . . . 1 Maintenance Status 1 | . . . 1 Zone Layout 3 | . . . 3 Fabricator Hacks . | . . . . Repair Station Hacks . | . . . . Recycling Unit Hacks . | . . . . Scanalyzer . | . . . . Garrison Access Hacks . | . . . . Unauthorized Hacks 16 | . 3 . 13 Terminals 15 | . 2 . 13 Botnet 5 | . 1 . 4 Disrupt 1 | . . . 1 Operators 2 | . . . 2 Skim 7 | . 1 . 6 Fabricators . | . . . . Repair Stations . | . . . . Recycling Units 1 | . 1 . . Recyclers 1 | . 1 . . Scanalyzers . | . . . . Garrison Access . | . . . . Data Cores Recovered 2 | . 1 . 1 Used 1 | . . . 1 Hacking Detections 10 | . 2 . 8 Full Trace Events 2 | . 1 . 1 Feedback Events . | . . . . Feedback Blocked . | . . . . Robot Schematics Acquired . | . . . . Robots Built . | . . . . Authchips . | . . . . Time . | . . . . Total Robot Build Rating . | . . . . Part Schematics Acquired . | . . . . Parts Built . | . . . . Authchips . | . . . . Time . | . . . . Total Part Build Rating . | . . . . Part Studies Acquired . | . . . . Parts Repaired . | . . . . Time . | . . . . Parts Recycled . | . . . . Recycled Matter . | . . . . Retrieved Matter . | . . . . Retrieved Components . | . . . . Parts Scanalyzed . | . . . . Part Schematics Acquired . | . . . . Parts Damaged . | . . . . Bothacking | -11 -10 -10 -8 ------------ Run | Yrd Mat Sub Mat Used RIF Installer . | . . . . Robots Hacked . | . . . . Non-combat . | . . . . Combat . | . . . . Robot Hacks Applied . | . . . . Relay Couplers Released . | . . . . Fabnet Peak Effective % . | . . . . Robots Rewired . | . . . . Allies Hacked . | . . . . Hacks Repelled . | . . . . Allies | -11 -10 -10 -8 -------- Run | Yrd Mat Sub Mat Total Allies . | . . . . Largest Group . | . . . . Highest-Rated Group . | . . . . Highest-Rated Ally . | . . . . Total Orders . | . . . . Ally Attacks . | . . . . Total Damage . | . . . . Kills . | . . . . Allies Corrupted . | . . . . Allies Melted . | . . . . Intel | -11 -10 -10 -8 ------- Run | Yrd Mat Sub Mat Active Infowar (turns) 2111 | 4 361 811 935 Sensors 443 | . . . 443 Structural 421 | . . . 421 Traps 71 | . . . 71 Seismic 1176 | 4 361 811 . Robot Analysis Total . | . . . . Derelict Logs Recovered . | . . . . Drone Launches . | . . . . Drone Recoveries . | . . . . Exploration | -11 -10 -10 -8 ------------- Run | Yrd Mat Sub Mat Turns Passed 3797 | 66 361 1346 2024 Spaces Moved 2096 | 6 250 726 1114 Core . | . . . . Treads 966 | . . 698 268 Legs 284 | 6 250 28 . Wheels 846 | . . . 846 Hover . | . . . . Flight . | . . . . Fastest Speed 80 | 120 120 120 80 Average Speed 137 | 120 120 158 127 Slowest Speed 560 | 120 120 160 560 Overloaded Moves . | . . . . Propulsion Burnouts . | . . . . Robots Hopped . | . . . . Potential Cave-ins . | . . . . Cave-ins Triggered . | . . . . Exploration Rate (%) 35 | 3 32 52 53 Regions Visited 3 Branch Regions 1 Pre-discovered Areas 3 | . . . 3 Known Exits Taken . | . . . . Unknown Exits Taken 3 | 1 1 1 . Scrap Searched 3 | . . 3 . Spaces Dug 11 | . . . 11 Terrain Destroyed 82 | . . 49 33 Melee 5 | . . . 5 Projectile . | . . . . AOE 77 | . . 49 28 Terrain Rammed . | . . . . Walls Destroyed . | . . . . Machines Disabled . | . . . . Actions | -11 -10 -10 -8 --------- Run | Yrd Mat Sub Mat Total 2689 | 44 286 857 1502 Wait 252 | 27 13 54 158 Move 2093 | 5 249 725 1114 Hop . | . . . . Pick Up 46 | . 3 10 33 Fast Attach 20 | 1 . 3 16 Attach 11 | . . 3 8 Detach 7 | . . . 7 Swap 23 | . 2 5 16 Drop 43 | . 3 14 26 Fire 176 | 11 14 42 109 Melee 15 | . . . 15 Ram . | . . . . Kick 2 | . 2 . . Crush . | . . . . Escape Stasis . | . . . . Rewire . | . . . . Trap . | . . . . Miscellaneous 1 | . . 1 . Route ------- -11/Scrapyard -10/Materials (discovered 2 exits: [*Min] / [*Sub]) -10/Subcaves -8/Materials (discovered 1 exit: [*Fac]) History --------- Turn | Location | Event 23 | -11/Scrapyard | Discovered new exit (range 3) 67 | -11/Scrapyard | Entered Materials 242 | -10/Materials | Discovered new exit (range 15) 307 | -10/Materials | Build established: Mutant 383 | -10/Materials | Discovered new exit (range 6) 428 | -10/Materials | Entered Subcaves 471 | -10/Subcaves | Shifting Twisted Machinery released Mak. Light Armor Plating 516 | -10/Subcaves | Shifting Twisted Machinery released Shrapnel Trap 546 | -10/Subcaves | A swath of the cavern ceiling suddenly collapsed 770 | -10/Subcaves | Core integrity fell below 50% 959 | -10/Subcaves | Disturbed a concealed Subdweller 1012 | -10/Subcaves | Shifting Twisted Machinery released Sub. Monowheel 1016 | -10/Subcaves | Shifting Twisted Machinery released Mak. Hacking Suite 1062 | -10/Subcaves | Curiously followed by a Cobbler waking with a query about "LVR3C" 1579 | -10/Subcaves | Build established: Subdweller-Mutant 1735 | -10/Subcaves | Ambushed by Subdweller buried in earth 1735 | -10/Subcaves | Ambushed by Subdweller buried in earth 1758 | -10/Subcaves | Discovered new exit (range 9) 1774 | -10/Subcaves | Entered Materials 1774 | -8/Materials | Evolved 4 slots: Propulsion x2, Utility x2 2480 | -8/Materials | Build established: Scavenger-Mutant 2546 | -8/Materials | Learned location of 1 exit from Recycling 2602 | -8/Materials | Learned location of Zion (-6) 2603 | -8/Materials | Learned Storage emergency access door positions 2604 | -8/Materials | Learned location of 1 exit from Storage 2621 | -8/Materials | Learned Factory stockpile data 3279 | -8/Materials | Discovered new exit (range 15) 3774 | -8/Materials | First assault squad dispatched 3798 | -8/Materials | Self-destructed Last Messages --------------- 03670_ R-06 Scavenger collects Corrupted Lgt. Nuclear Core. 03670_ U-05 Engineer lays Concrete. 03672_ K-01 Serf collects debris. 03672_ U-05 Engineer builds a Wall. 03674_ R-06 Scavenger collects Corrupted Carbon-fiber Leg. 03675_ K-01 Serf collects debris. 03678_ R-06 Scavenger collects Corrupted Particle Gun. 03689_ U-05 Engineer lays Concrete. 03702_ Destroyed System Restoration Module. 03735_ Material Processor disabled. 03774_ ALERT: Unidentified disturbance in Zone 4X, assault force dispatched. 03797_ C-45 Heavy ARC bursts open, deploying its payload. 03797_ G-50 Soldier unfolds itself. 03797_ G-47 Trooper unfolds itself. 03797_ I-25 Savior unfolds itself. Map ----- +----------------------------------------------------+ | ##?????????????????????????????????????? | | """ #??????????????????????????????????????? | | """ ! #??????????????????????????????????????? | | """ #??????????????????????????????????????? | | #??????????????????????????????????????? | | ########"#?????????????????????????????????????? | | ????????##?????????????????????????????????????? | | ???????????????????????????????????????????????? | | ???????????????????????????????????????????????? | | ???????????????????????????????????????????????? | | ???????????????????????????????????????????????? | | ???????????????????????????????????????????????? | | ???????????????????????????????????????????????? | | ???????????????????????????????????????????????? | | ???????????????????????? ????????????????????? | | ????????????????????????#+#????????????????????? | | ???????????????????????## ##???????????????????? | | ???????????????????????## ##???????????????????? | | ????????????????????##### ##???????????????????? | | ???????????????????###### ##???????????????????? | | ???????????????????###! ##???????????????????? | | ???????????????????##! g ##???????????????????? | | ???????????????????##! g%##???????????????????? | | ???????????????????##!i gg## ##########???? | | ???????????????????##! #####+############???? | | ???????????????????###! @ + ???? | | ############# ###### # [[ ##?? | | ################+######## # """ [[ ##?? | | []%] # """ ##?? | | [=[ + """ ##?? | | !% % # """ ##?? | | ########## ########### ######## # """ ????? | | ########## ########### ######## # ????? | | """" ## ########### ######## #########????? | | """" ## ###!!]]!!## ########+#########????? | | """" ## ###!! ]!!## # ##????????? | | !#" !#[# ## # """ ##????????? | | #% %[## ## # """"" ##????????? | | "" %/ %* % # """" ##????????? | | ! """""[# == # """"" ##????????? | | # ] ######### / """ ##????????? | | ##########"""#"# !o# # ##????????? | | ###### == #""" # ##############????????? | | ????## ! #""" + ######????????? | | ????## #""" # #######???????? | | ????## # ###+####+############????? | | ????## """ #""" # # ##????? | | ????## "Y" """ #""" ??? ? # """ """ ##????? | | ????## """ """ #""" ??? """ # """ """?? #????? | | ????## # ? # """ # """ """?????????? | +----------------------------------------------------+ Best States ------------- Heat Dissipation 53 Energy Generation 16 Energy Capacity 290 Matter Stores 300 Matter Capacity 300 Sight Range 16 Robot Scan Range 15 Terrain Scan Density 10 Armor Coverage 800 Evasion (%) 55 Recoil Reduction 4 Offensive Hacking 11 Item Schematics ----------------- None Robot Schematics ------------------ None Fabricated ------------ Nothing Repaired ---------- Nothing Studied --------- None Alien Tech Used ----------------- None Achievements -------------- None Challenges ------------ None Game ------ Seed PowerDecoyBuckler Manual? 0 Play Time 00:28:01 Cumulative 155.4 hours Start 2025.11.02 @ 13:42:05 End 2025.11.02 @ 14:09:30 Sessions 1 Manual Loads 0 Difficulty Rogue Special Mode None Game No. 116 Rogue 116 Adventurer 0 Explorer 0 Win Type - Total 4 Types 3/0/1/0/0/0/0/0/0/0 Lore% 57 Gallery% 52 Achievement% 36 Wizard Run 0 Options --------- Layout 2 ASCII 0 Keyboard 1 Movement Numpad Keybinds 0 Fullscreen 2 Font 32/SmallcapsGlow Map View 50x44 Zoom Use 0% Tactical HUD 1 Map Filters NONE Filters NONE Steam 1 RUN: cd8c3321-98f3-4f2c-91d1-0c7d575446f0